Cogmind - Beta 13 *** ADVENTURER MODE // 2024.05.10 @ 12:11:05 Player: Kate Sidhe Result: Destroyed by L-31 Rogue with Katana Performance ------------- Evolutions (1) 500 Regions Visited (2) 400 Robots Destroyed (55) 275 Value Destroyed (1331) 1331 Prototype IDs (2) 40 Alien Tech Used (0) 0 Bonus (0) 0 TOTAL SCORE: 2546 Bonus ------- None Cogmind --------- Core Integrity 0/400 Matter 250/300 Energy 300/300 System Corruption 0% Temperature Cool (0) Movement Flying (1720) Ox21 Location -9/Materials Parts ------- > --- POWER (2) -------- (None) > --- PROPULSION (2) --- Flight Unit > --- UTILITY (2) ------ Huge Storage Unit Large Battery > --- WEAPON (3) ------- Improved Assault Rifle > --- INVENTORY (25) --- Flight Unit Medium Matter Pod (100) Structural Scanner Terrain Scanner Terrain Scan Processor Targeting Computer ECM Suite Hardened Light Armor Plating Hardened Light Armor Plating Hardened Light Armor Plating Peak State ------------ > --- POWER ------------ Light Nuclear Core > --- PROPULSION ------- Improved Treads Improved Treads > --- UTILITY ---------- Medium Battery Medium Matter Pod > --- WEAPON ----------- Improved Light Cannon Datajack Heavy Hammer > --- INVENTORY -------- Medium Battery Medium Battery Targeting Computer Assault Rifle Mining Laser [Rating: 14] Favorites ----------- Power Ion Engine Engine Ion Engine Power Core Light Nuclear Core Propulsion Improved Treads Treads Improved Treads Leg Aluminum Leg Flight Unit Flight Unit Utility Medium Battery Device Heat Sink Storage Medium Battery Processor Salvage Targeting Computer Weapon Assault Rifle Energy Gun Particle Gun Energy Cannon Advanced Beam Cannon Ballistic Gun Assault Rifle Ballistic Cannon Improved Light Cannon Launcher Grenade Launcher Special Weapon Mining Laser Impact Weapon Heavy Hammer Special Melee Weapon Datajack Build | -11 -10 -9 ------- Run | Yrd Mat Mat Slots Evolved 2 | . . 2 Power 1 | . . 1 Propulsion . | . . . Utility . | . . . Weapon 1 | . . 1 Parts Attached 56 | 8 22 26 Power 9 | 2 2 5 Engine 7 | 2 . 5 Core 2 | . 2 . Reactor . | . . . Propulsion 11 | 2 2 7 Treads 5 | . 2 3 Leg 2 | 2 . . Wheel . | . . . Hover . | . . . Flight 4 | . . 4 Utility 13 | 1 4 8 Device 1 | 1 . . Storage 10 | . 2 8 Processor 2 | . 2 . Hackware . | . . . Protection . | . . . Artifact . | . . . Weapon 23 | 3 14 6 Energy Gun 6 | 1 5 . Energy Cannon 1 | . . 1 Ballistic Gun 9 | 2 4 3 Ballistic Cannon 1 | . 1 . Launcher 1 | . 1 . Special Weapon 3 | . 2 1 Impact Weapon 1 | . 1 . Slashing Weapon . | . . . Piercing Weapon . | . . . Special Melee Weapon 1 | . . 1 Unidentified Prototypes 2 | . . 2 Corrupted Parts 1 | . 1 . System Corruption 2 | . 2 . Parts Lost 8 | . . 8 Power 3 | . . 3 Propulsion 3 | . . 3 Utility . | . . . Weapon 2 | . . 2 Highest Loss Streak 3 | . . 3 To Critical Strikes . | . . . Average Slot Usage (%) 78 | . 99 68 Engine 9 | . 4 12 Core 3 | . 9 . Treads 16 | . 27 11 Flight 2 | . . 3 Storage 20 | . 18 22 Processor 2 | . 7 . Energy Gun 1 | . 5 . Energy Cannon 4 | . . 6 Ballistic Gun 8 | . 7 8 Ballistic Cannon 3 | . 5 2 Special Weapon 1 | . 2 . Impact Weapon 1 | . 5 . Naked Turns . | . . . Heaviest Build 100 | 9 16 100 Greatest Support 46 | 20 46 46 Greatest Overweight (x) 30 | . . 30 Average Overweight (x) 1 | . . 4 Largest Inventory Capacity 25 | 5 5 25 Average Capacity 16 | 5 5 22 Most Carried 15 | 4 5 15 Average Carried 6 | 1 4 8 Final Capacity 25 | 5 5 25 Final Carried 10 | 3 5 10 Class Distribution -------------------- 79% | Mutant 14% | Scavenger-Mutant 3% | Gunner Dominant Class ---------------- Mutant | -10/Materials Mutant | -9/Materials Resources | -11 -10 -9 ----------- Run | Yrd Mat Mat Matter Collected 1276 | 298 397 581 Remotely . | . . . Salvage Created 1902 | 41 339 1522 Parts 120 | 4 22 94 Haulers Intercepted 2 | . . 2 Recyclers Shooed 3 | . 1 2 Parts Field Recycled . | . . . Retrieved Matter . | . . . Parts Self-Destructed . | . . . Prevented . | . . . Kills | -11 -10 -9 ------- Run | Yrd Mat Mat Combat Hostiles Destroyed 37 | 1 11 25 Guns 10 | 1 4 5 Cannons 25 | . 5 20 AOE 2 | . 2 . Classes Destroyed 9 | 1 2 6 Worker 3 | . . 3 Builder 4 | . . 4 Hauler 2 | . . 2 Recycler 5 | . 1 4 Operator 1 | . . 1 Watcher 3 | . . 3 Swarmer 9 | . 6 3 Grunt 22 | 1 5 16 Sentry 6 | . . 6 Best Kill Streak 5 | 1 3 5 Combat Bots Only 4 | 1 3 4 Max Kills in Single Turn 2 | 1 2 2 Gunslinging . | . . . Exploded 2 | . 2 . Melee . | . . . Uniques/NPCs Destroyed . | . . . Combat | -11 -10 -9 -------- Run | Yrd Mat Mat Hostile Shots Fired 276 | 4 94 178 Missed 84 | 2 33 49 Damage Taken 1996 | 16 461 1519 Core 519 | . 96 423 Absorbed by Shields . | . . . Ignored by Resistances 598 | 5 151 442 Regen/Repaired (Parts) 20 | . 20 . Core Remaining (%) 80 | 100 61 . Volleys Fired 151 | 3 47 101 Largest 2 | 2 2 2 Hottest 100 | 40 100 68 Shots Fired 208 | 6 59 143 Gun 95 | 6 36 53 Cannon 111 | . 21 90 Launcher . | . . . Special 2 | . 2 . Kinetic 135 | 6 45 84 Thermal 61 | . 2 59 Explosive . | . . . Electromagnetic 12 | . 12 . Robot Hit Streak 19 | 5 8 19 Robot Miss Streak 3 | . 3 3 Penetration Max . | . . . Secondary Targets 1 | . 1 . Max Gunslinging Chain 1 | . 1 . Shots Hit Robots 153 | 5 39 109 Core Hits 66 | 2 15 49 Critical Kills . | . . . Critical Parts Destroyed 1 | . . 1 Critical Strikes 2 | . . 2 Destroy 1 | . . 1 Blast 1 | . . 1 Melee Attacks 3 | . 1 2 Impact 1 | . 1 . Slashing . | . . . Piercing . | . . . Sneak Attacks 2 | . 1 1 Combat Hostiles . | . . . Follow-up Attacks . | . . . Damage Inflicted 3035 | 61 837 2137 Guns 945 | 61 325 559 Cannons 1711 | . 311 1400 Explosions 262 | . 84 178 Melee 117 | . 117 . Ramming . | . . . Kinetic 1641 | 61 542 1038 Thermal 1005 | . 84 921 Explosive 178 | . . 178 Electromagnetic 94 | . 94 . Impact 117 | . 117 . Slashing . | . . . Piercing . | . . . Highest Corruption 2 | . 2 . Average Corruption 2 | . 2 . Corruption Purged . | . . . Corruption Blocked . | . . . Effects 11 | . 11 . Message Errors 1 | . 1 . Matter Fused 3 | . 3 . Energy Discharges 2 | . 2 . Data Loss (minor) 3 | . 3 . Data Loss (major) 1 | . 1 . Alerts 1 | . 1 . Overload Shots . | . . . Overflow Damage 162 | . 92 70 Projectiles 11 | . . 11 Explosions 64 | . 5 59 Melee 87 | . 87 . Knockbacks 6 | . 5 1 Impact . | . . . Kinetic 5 | . 4 1 Secondary 1 | . 1 . Self-Inflicted Damage 205 | . 27 178 Shots 3 | . 1 2 Rammed . | . . . Targets Rammed . | . . . Kicked . | . . . Crushed . | . . . Highest Temperature 355 | . 50 355 Average Temperature 67 | . 19 81 Received Heat Transfer 906 | 12 165 729 Effects 1 | . . 1 Energy Bleed 1 | . . 1 Siege Activations . | . . . Robots Corrupted . | . . . Combat Hostiles . | . . . Parts Fried 1 | . 1 . Impact Corruptions 3 | . 3 . Robots Melted . | . . . Combat Hostiles . | . . . Parts Melted 6 | . . 6 Heat Transferred 1815 | . 150 1665 Parts Sabotaged . | . . . Parts Stolen . | . . . Parts Stripped . | . . . Power Chain Reactions 1 | . 1 . Alert | -11 -10 -9 ------- Run | Yrd Mat Mat Peak Influence 314 | 20 149 314 Initial 23 | . 11 23 Average 96 | 9 64 116 Maximum Alert Level 1 | . . 1 Low Security (%) 89 | 100 100 83 Level 1 10 | . . 16 Level 2 . | . . . Level 3 . | . . . Level 4 . | . . . Level 5 . | . . . High Security . | . . . Max Security . | . . . Squads Dispatched 7 | . 2 5 Investigation 6 | . 2 4 Extermination . | . . . Reinforcement 1 | . . 1 Assault . | . . . Garrison . | . . . Intercept . | . . . Searches Triggered . | . . . Construction Impeded . | . . . Haulers Reinforced . | . . . Active Scanning Responses . | . . . Cargo Convoy Interrupts . | . . . Stealth | -11 -10 -9 --------- Run | Yrd Mat Mat Distress Signals 4 | . 1 3 Communications Jammed . | . . . Distress Signals . | . . . Times Spotted 51 | 1 15 35 Peak Tracking Total 5 | 1 5 3 Tactical Retreats . | . . . Traps | -11 -10 -9 ------- Run | Yrd Mat Mat Traps Triggered 1 | . 1 . Indirectly . | . . . Trap Hack Attempts . | . . . Triggered . | . . . Disarmed . | . . . Reprogrammed . | . . . Reused . | . . . Traps Extracted . | . . . Installed . | . . . Triggered . | . . . Machines | -11 -10 -9 ---------- Run | Yrd Mat Mat Machines Disabled 5 | . 2 3 Max in Single Turn 2 | . 1 2 Machines Repaired . | . . . Machines Dismantled . | . . . Machines Sabotaged . | . . . Overloaded Fab Kills . | . . . Hacking | -11 -10 -9 --------- Run | Yrd Mat Mat Machines Accessed 10 | . 6 4 Terminals 7 | . 5 2 Fabricators . | . . . Repair Stations 1 | . 1 . Recycling Units 1 | . . 1 Scanalyzers 1 | . . 1 Garrison Access . | . . . Total Hacks 56 | . 23 33 Successful 41 | . 16 25 Failed 15 | . 7 8 Catastrophic 3 | . . 3 Database Lockouts . | . . . Manual 1 | . 1 . Terminals 33 | . 16 17 Fabricators . | . . . Repair Stations 7 | . 7 . Recycling Units 10 | . . 10 Scanalyzers 6 | . . 6 Garrison Access . | . . . Terminal Hacks 22 | . 11 11 Record 7 | . 3 4 Emergency Access Points 2 | . 1 1 Terminal Index 1 | . 1 . Alert Level 4 | . 3 1 Unreport Threat 1 | . . 1 Locate Traps 1 | . 1 . Dispatch Records 1 | . . 1 Maintenance Status 1 | . . 1 Recall Assault 1 | . 1 . Hauler Manifests 1 | . . 1 Registered Components 1 | . 1 . Zone Layout 1 | . . 1 Fabricator Hacks . | . . . Repair Station Hacks 5 | . 5 . Scan Component 2 | . 2 . Repair 2 | . 2 . Refit 1 | . 1 . Recycling Unit Hacks 9 | . . 9 Recycle Component 6 | . . 6 Report Inventory 1 | . . 1 Retrieve Components 2 | . . 2 Scanalyzer 5 | . . 5 Insert Component 2 | . . 2 Analyze 3 | . . 3 Garrison Access Hacks . | . . . Unauthorized Hacks . | . . . Terminals . | . . . Fabricators . | . . . Repair Stations . | . . . Recycling Units . | . . . Scanalyzers . | . . . Garrison Access . | . . . Data Cores Recovered . | . . . Used . | . . . Hacking Detections 8 | . 4 4 Full Trace Events 7 | . 3 4 Feedback Events . | . . . Feedback Blocked . | . . . Robot Schematics Acquired . | . . . Robots Built . | . . . Authchips . | . . . Time . | . . . Total Robot Build Rating . | . . . Part Schematics Acquired 2 | . . 2 Parts Built . | . . . Authchips . | . . . Time . | . . . Total Part Build Rating . | . . . Parts Repaired 2 | . 2 . Time 64 | . 64 . Parts Recycled 6 | . . 6 Recycled Matter . | . . . Retrieved Matter . | . . . Retrieved Components 9 | . . 9 Parts Scanalyzed 2 | . . 2 Part Schematics Acquired 2 | . . 2 Parts Damaged . | . . . Bothacking | -11 -10 -9 ------------ Run | Yrd Mat Mat Used RIF Installer . | . . . Robots Hacked 1 | . . 1 Non-combat 1 | . . 1 Combat . | . . . Robot Hacks Applied 1 | . . 1 parse_system 1 | . . 1 Relay Couplers Released . | . . . Fabnet Peak Effective % . | . . . Robots Rewired . | . . . Allies Hacked . | . . . Hacks Repelled . | . . . Allies | -11 -10 -9 -------- Run | Yrd Mat Mat Total Allies . | . . . Largest Group . | . . . Highest-Rated Group . | . . . Highest-Rated Ally . | . . . Total Orders . | . . . Ally Attacks . | . . . Total Damage . | . . . Kills . | . . . Allies Corrupted . | . . . Allies Melted . | . . . Intel | -11 -10 -9 ------- Run | Yrd Mat Mat Robot Analysis Total . | . . . Derelict Logs Recovered . | . . . Drone Launches . | . . . Drone Recoveries . | . . . Exploration | -11 -10 -9 ------------- Run | Yrd Mat Mat Turns Passed 3178 | 131 992 2055 Spaces Moved 1043 | 98 518 427 Core 49 | 20 . 29 Treads 849 | . 505 344 Legs 91 | 78 13 . Wheels . | . . . Hover . | . . . Flight 54 | . . 54 Fastest Speed 50 | 50 120 160 Average Speed 253 | 105 158 403 Slowest Speed 1720 | 120 160 1720 Overloaded Moves . | . . . Propulsion Burnouts . | . . . Robots Hopped . | . . . Cave-ins Triggered . | . . . Exploration Rate (%) 38 | 10 64 41 Regions Visited 2 Branch Regions . Pre-discovered Areas . | . . . Known Exits Taken . | . . . Unknown Exits Taken 2 | 1 1 . Scrap Searched . | . . . Spaces Dug 2 | . 2 . Terrain Destroyed 48 | . 6 42 Melee . | . . . Projectile 5 | . 2 3 AOE 43 | . 4 39 Terrain Rammed . | . . . Walls Destroyed . | . . . Machines Disabled . | . . . Actions | -11 -10 -9 --------- Run | Yrd Mat Mat Total 1361 | 119 625 617 Wait 7 | 1 1 5 Move 1041 | 97 517 427 Hop . | . . . Pick Up 62 | 9 17 36 Fast Attach 3 | . 2 1 Attach 24 | 7 8 9 Detach 6 | 1 5 . Swap 29 | 1 12 16 Drop 35 | . 15 20 Fire 151 | 3 47 101 Melee 3 | . 1 2 Ram . | . . . Kick . | . . . Crush . | . . . Escape Stasis . | . . . Rewire . | . . . Trap . | . . . Miscellaneous . | . . . Route ------- -11/Scrapyard -10/Materials (discovered 2 exits: *Mat / [*Min]) -9/Materials (discovered 1 exit: [*Mat]) History --------- Turn | Location | Event 2 | -11/Scrapyard | Met Revision 17 57 | -11/Scrapyard | Discovered new exit (range 8) 132 | -11/Scrapyard | Entered Materials 304 | -10/Materials | Build established: Mutant 377 | -10/Materials | Discovered new exit (range 3) 472 | -10/Materials | Repaired Lgt. Nuclear Core 498 | -10/Materials | Repaired Assault Rifle 726 | -10/Materials | Discovered new exit (range 15) 1124 | -10/Materials | Entered another Materials area 1124 | -9/Materials | Evolved 2 slots: Power x1, Weapon x1 1950 | -9/Materials | Build established: Scavenger-Mutant 1965 | -9/Materials | Discovered new exit (range 3) 2401 | -9/Materials | Build established: Mutant 2492 | -9/Materials | Lost 3 parts (2p1n) 2761 | -9/Materials | Core integrity fell below 50% 3167 | -9/Materials | Core integrity fell below 20% 3179 | -9/Materials | Destroyed by L-31 Rogue with Katana Last Messages --------------- 02929_ A-02 Transporter destroyed. 02931_ K-01 Serf collects debris. 02932_ Acquired 51 matter. 02935_ K-01 Serf collects debris. 02985_ Acquired Flight Unit. 02988_ K-01 Serf collects debris. Once familiar with the basic mechanics, press ESC then '3' to read the in-game manual for more details. 03001_ K-01 Serf collects debris. 03005_ Acquired Flight Unit. 03050_ Dropped Lgt. Treads. 03050_ Dropped Lrg. Storage Unit. 03101_ Acquired ECM Suite. 03127_ Acquired Lrg. Battery. 03130_ Dropped Med. Battery. 03174_ Flight Unit destroyed. 03176_ L-31 Rogue suffers critical hit (Destroy). 03176_ Destroyed Imp. Ion Engine. 03176_ Imp. Assault Rifle severed. [Achievement: First Step to Greatness] Map ----- +----------------------------------------------------+ | ?????????????????????????????????????????????????? | | ?????????????????????????????????????????????????? | | ?????????????????????????????????????????????????? | | ?????????????????????????????????????????????????? | | ?????????????????????????????????????????????????? | | ?????????????????????????????????????????????????? | | ?????????????????????????????????????????????????? | | ?????????????????????????????????????????????????? | | ?????????????????????????????????????????????????? | | ?????????????????????????????????????????????????? | | ?????????????????????????????????????????????????? | | ??????????????????????????#??????????????????????? | | ?????????????????????????? ??????????????????????? | | ?????????????????????????? ??????????????????????? | | ?????????????????????????? ??????????????????????? | | ????????????????????????? ??????????????????????? | | ????????????????????????? ??????????????????????? | | ?????????????????????????" ??????????????????????? | | ?????????????????????????" #?????????????????????? | | ?????????????????????????" #?????????????????????? | | ????????????????????????? #?????????????????????? | | ??????????????????########+#????????????#?###????? | | ??????????????????# # #????????????# ????? | | ??????????????????# # #????????????# T ????? | | ??????????????????# #g##########???# ????? | | ??????????????????# !! [@l k k ???? | | ??????????????????# ! #g######## #???# ???? | | ??????????????????# !! #/######## #???# ???? | | ??????????????????######## % !!! # #???? ???? | | ?????????????????????????#= ! !! # #?????? ???? | | ?????????????????????????# !! # #########+#### | | ?????????????????????????# # | | ?????????????????????????#[ !*+ % | | ????????????????????????## !%# % % | | ???????????????#######??# [! =### #######+### | | ????????####+###/ #??## #?# #????? ?# | | ????????# #???#! #?# #?????"""?# | | ????????# #???############ #???? """ # | | ????????# = #?????????"""" # #???? """ # | | ????????### ## #??????? """"" # #???" """ # | | ??????????# ####+#######????""""" # #???" """ # | | ??????????# ## T #???? ? #?? ??? # | | ??????????# ## #????? ?? #?? ?????# | | ??????????# ## """"" #????##+#### ######??### | | ??????????# ## """"" ###### ## """ # | | ??????????# ## """"" + + """"" # | | ??????????# ## ###### ## """"" # | | ??????????# ## #????# ## """"" #% | | ??????????# ## ! #????# ## """ + | | ??????????# ############????# ## #% | +----------------------------------------------------+ Best States ------------- Heat Dissipation 35 Energy Generation 17 Energy Capacity 565 Matter Stores 301 Matter Capacity 400 Sight Range 16 Terrain Scan Density 10 Resistance: KI 20 Resistance: TH 20 Resistance: EX 20 Resistance: EM 20 Resistance: I 20 Resistance: S 20 Resistance: P 20 Evasion (%) 55 Targeting Accuracy 5 Recoil Reduction 2 Salvage Targeting 1 Offensive Hacking 10 Item Schematics ----------------- Med. Battery | -9/Materials | Scanalyzed Terrain Scan Processor | -9/Materials | Scanalyzed Robot Schematics ------------------ None Fabricated ------------ Nothing Alien Tech Used ----------------- None Achievements -------------- Everything Is Under Control First Step to Greatness Loot Pinata One Hack Too Far Part-time Mechanic Risk Taker Shopping List Uninvited Guest Challenges ------------ None Game ------ Seed StormUtilityModule Manual? 0 Play Time 00:37:04 Cumulative 0.6 hours Start 2024.05.10 @ 11:34:16 End 2024.05.10 @ 12:11:05 Sessions 1 Manual Loads 0 Difficulty Adventurer Special Mode None Game No. 1 Rogue 0 Adventurer 1 Explorer 0 Win Type - Total 0 Types 0/0/0/0/0/0/0/0/0 Lore% 1 Gallery% 3 Achievement% 3 Wizard Run 0 Options --------- Layout 0 ASCII 0 Keyboard 0 Movement Mouse Keybinds 0 Fullscreen 1 Font 18/SmallcapsGlow Map View 76x50 Zoom Use 0% Tactical HUD 1 Map Filters NONE Filters NONE Steam 1 RUN: 856b1230-3fb9-4531-a8f2-ed21be56d8d3